fUST/lending_fUST_20251004
["ID","MTS","AMOUNT","RATE_DAILY","PERIOD"]
[389155967,1759592755613,-10000.01,0.00018571,2]
[389155968,1759592756055,-10000.01,0.00018571,2]
[389155969,1759592756077,-10000.01,0.00018571,2]
[389155970,1759592756111,-10000.01,0.00018571,2]
[389155971,1759592758399,-10000.01,0.00018571,2]
[389155972,1759592760626,-10000.01,0.00018571,2]
[389155973,1759592762589,-10000.01,0.00018571,2]
[389155974,1759592762821,-300.0,0.0001857,2]
[389155975,1759592762873,-9400.01,0.00018571,2]
[389155976,1759592762927,-10000.01,0.00018571,2]
[389155977,1759592763127,-10000.01,0.00018571,2]
[389155978,1759592763311,-10000.01,0.00018571,2]
[389155979,1759592763465,-10000.01,0.00018571,2]
[389155980,1759592763614,-10000.01,0.00018571,2]
[389155981,1759592763788,-10000.01,0.00018571,2]
[389155982,1759592768641,-10000.01,0.00018571,2]
[389155983,1759592768783,-10000.01,0.00018571,2]
[389155984,1759592768942,-10000.01,0.00018571,2]
[389155985,1759592769085,-10000.01,0.00018571,2]
[389155986,1759592769289,-10000.01,0.00018571,2]
[389155987,1759592769453,-10000.01,0.00018571,2]
[389155988,1759592769587,-10000.01,0.00018571,2]
[389155989,1759592769735,-2326.62482958,0.00018571,2]
[389155990,1759592769775,-500.0,0.00018571,2]
[389155991,1759592770090,4346.76034084,0.00018385,2]
[389155992,1759592778028,5000.0,0.00018033,2]
[389155994,1759592786085,1008.51482557,0.00018033,2]
[389155995,1759592801269,5000.0,0.00018033,2]
[389155996,1759592810770,238.49,0.00018033,2]
[389155997,1759592825770,5000.0,0.00018033,2]
[389155998,1759592847165,-653.23965916,0.00018385,2]
[389155999,1759592847201,-454.31568534,0.000185,2]
[389156000,1759592847236,-889.31934595,0.000185,2]
[389156001,1759592847272,-2408.414775,0.00018566,2]
[389156002,1759592848304,4212.24051602,0.00018033,2]
[389156003,1759592849161,-1189.4310691,0.00018566,2]
[389156004,1759592849195,-1000.0,0.00018571,2]
[389156005,1759592849228,-869.22639068,0.00018571,2]
[389156006,1759592849264,-383.49099657,0.00018572,2]
[389156007,1759592849302,-198.55846478,0.00018572,2]
[389156008,1759592849341,-300.0,0.00018572,2]
[389156009,1759592849377,-918.59615774,0.00018572,2]
[389156010,1759592853128,-281.40384226,0.00018572,2]
[389156011,1759592853236,-6596.38204717,0.00018573,2]
[389156012,1759592854620,153.0,7.9e-07,2]
[389156013,1759592855664,153.0,7.9e-07,2]
[389156014,1759592856707,153.0,7.9e-07,2]
[389156015,1759592857940,153.0,7.9e-07,2]
[389156016,1759592858992,153.0,7.9e-07,2]
[389156017,1759592860042,153.0,7.9e-07,2]
[389156018,1759592871336,5000.0,0.00018033,2]
[389156020,1759592887714,-5000.0,0.00018387,2]
[389156021,1759592887766,-0.01,0.00018572,2]
[389156022,1759592889447,-400.0,0.000185,2]
[389156023,1759592889485,-299.99,0.00018572,2]
[389156024,1759592889573,-8600.03,0.00018573,2]
[389156025,1759592893491,-5000.0,0.00018387,2]
[389156026,1759592893543,-0.01,0.00018573,2]
[389156027,1759592897529,-10000.01,0.00018573,2]
[389156028,1759592909253,5000.0,0.00018033,2]
[389156029,1759592917669,3447.88034927,0.00018033,2]
[389156030,1759592932922,5000.0,0.00018032,2]
[389156031,1759592948215,-1552.11965073,0.00018033,2]
[389156032,1759592948251,-1895.77069854,0.00018387,2]
[389156033,1759592948303,-3104.22930146,0.00018387,2]
[389156034,1759592948491,-1985.1293743,0.00018564,2]
[389156035,1759592948528,-300.0,0.00018572,2]
[389156036,1759592948566,-500.0,0.00018573,2]
[389156037,1759592948664,-4429.7512514,0.00018573,2]
[389156038,1759592948704,-10000.01,0.00018573,2]
[389156039,1759592950121,-10000.01,0.00018573,2]
[389156040,1759592954029,-10000.01,0.00018573,2]
[389156041,1759592958079,-5000.0,0.00018387,2]
[389156042,1759592958134,-0.01,0.00018573,2]
[389156044,1759592970773,5000.0,0.00018033,2]
[389156045,1759592979274,5000.0,0.00018033,2]
[389156046,1759592994209,0.01,0.00018033,2]
[389156047,1759592994243,463.69534363,0.00018033,2]
[389156048,1759593002177,5000.0,0.00018033,2]
[389156049,1759593024896,5000.0,0.00018032,2]
[389156208,1759593038970,-1200.0,0.00018285,2]
[389156209,1759593038980,-22019.37276432,0.00018286,2]
[389156210,1759593038989,-182.0,0.00018386,2]
[389156211,1759593038998,-300.0,0.00018386,2]
[389156212,1759593039008,-300.0,0.00018386,2]
[389156213,1759593039017,-5000.0,0.00018387,2]
[389156214,1759593039026,-150.0,0.00018387,2]
[389156215,1759593039035,-1242.31559389,0.00018473,2]
[389156216,1759593039045,-10872.0803422,0.00018564,2]
[389156217,1759593039054,-298238.83234272,0.00018573,2]
[389156218,1759593039064,-50000.0,0.00018573,2]
[389156219,1759593039074,-826.29413717,0.00018573,2]
[389156220,1759593039083,-151.0,0.00018573,2]
[389156221,1759593039093,-151.0,0.00018573,2]
[389156222,1759593039102,-151.0,0.00018573,2]
[389156223,1759593039111,-151.0,0.00018573,2]
[389156224,1759593039122,-157.0014497,0.00018573,2]
[389156225,1759593039132,-151.0,0.000186,2]
[389156226,1759593039141,-889.31934593,0.00018713,2]
[389156227,1759593039151,-500.01,0.00018845,2]
[389156228,1759593039161,-35306.91874322,0.00018861,2]
[389156229,1759593039171,-151.0,0.000189,2]
[389156230,1759593039180,-303.00000303,0.000189,2]
[389156231,1759593039191,-889.31934593,0.00018926,2]
[389156232,1759593039200,-300.0,0.00018943,2]
[389156233,1759593039210,-300.0,0.00018943,2]
[389156234,1759593039219,-300.0,0.00018943,2]
[389156235,1759593039228,-300.0,0.00018943,2]
[389156236,1759593039238,-300.0,0.00018943,2]
[389156237,1759593039248,-300.0,0.00018943,2]
[389156238,1759593039257,-300.0,0.00018943,2]
[389156239,1759593039267,-300.0,0.00018943,2]
[389156240,1759593039277,-300.0,0.00018943,2]
[389156241,1759593039286,-300.0,0.00018943,2]
[389156242,1759593039295,-300.0,0.00018943,2]
[389156243,1759593039304,-300.0,0.00018943,2]
[389156244,1759593039314,-300.0,0.00018943,2]
[389156245,1759593039324,-300.0,0.00018943,2]
[389156246,1759593039333,-300.0,0.00018943,2]
[389156247,1759593039343,-600.0,0.00018943,2]
[389156248,1759593039352,-328.16488193,0.00018984,2]
[389156249,1759593039362,-100000.0,0.0001899,2]
[389156250,1759593039371,-3550.30548838,0.00019,9]
[389156251,1759593039381,-10000.0,0.00019078,2]
[389156252,1759593039392,-303.00000303,0.00019089,2]
[389156253,1759593039402,-151.0,0.000191,2]
[389156254,1759593039412,-151.0,0.000191,2]
[389156255,1759593039421,-889.31934593,0.00019139,2]
[389156256,1759593039431,-500.0,0.00019173,2]
[389156257,1759593039441,-351.20955115,0.00019173,2]
[389156258,1759593039451,-500.0,0.00019173,2]
[389156259,1759593039460,-500.0,0.00019173,2]
[389156260,1759593039470,-500.0,0.00019173,2]
[389156261,1759593039483,-200.11490546,0.00019173,2]
[389156262,1759593039493,-500.0,0.00019173,2]
[389156263,1759593039503,-635.14524499,0.00019173,2]
[389156264,1759593039512,-500.0,0.00019173,2]
[389156265,1759593039523,-503.7740892,0.00019173,2]
[389156266,1759593039536,-500.0,0.00019173,2]
[389156267,1759593039549,-155.42,0.00019177,2]
[389156268,1759593039564,-500.0,0.00019178,2]
[389156269,1759593039575,-500.0,0.00019178,2]
[389156270,1759593039585,-500.0,0.00019178,2]
[389156271,1759593039596,-500.0,0.00019178,2]
[389156272,1759593039606,-500.0,0.00019178,2]
[389156273,1759593039616,-500.0,0.00019178,2]
[389156274,1759593039627,-500.0,0.00019178,2]
[389156275,1759593039637,-500.0,0.00019178,2]
[389156276,1759593039646,-500.0,0.00019178,2]
[389156277,1759593039657,-500.0,0.00019178,2]
[389156278,1759593039667,-500.0,0.00019178,2]
[389156279,1759593039677,-500.0,0.00019178,2]
[389156280,1759593039687,-500.0,0.00019178,2]
[389156281,1759593039698,-500.0,0.00019178,2]
[389156282,1759593039708,-500.0,0.00019178,2]
[389156283,1759593039718,-500.0,0.00019178,2]
[389156284,1759593039727,-500.0,0.00019178,2]
[389156285,1759593039737,-500.0,0.00019178,2]
[389156286,1759593039747,-500.0,0.00019178,2]
[389156287,1759593039757,-500.0,0.00019178,2]
[389156288,1759593039767,-500.0,0.00019178,2]
[389156289,1759593039776,-500.0,0.00019178,2]
[389156290,1759593039786,-500.0,0.00019178,2]
[389156291,1759593039798,-500.0,0.00019178,2]
[389156292,1759593039808,-500.0,0.00019178,2]
[389156293,1759593039817,-500.0,0.00019178,2]
[389156294,1759593039827,-500.0,0.00019178,2]
[389156295,1759593039837,-500.0,0.00019178,2]
[389156296,1759593039847,-500.0,0.00019178,2]
[389156297,1759593039856,-500.0,0.00019178,2]
[389156298,1759593039866,-500.0,0.00019178,2]
[389156299,1759593039877,-500.0,0.00019178,2]
[389156300,1759593039886,-483.10218923,0.00019178,2]
[389156301,1759593039895,-500.0,0.00019178,2]
[389156302,1759593039915,-507.95390373,0.00019178,2]
[389156303,1759593039925,-500.0,0.00019178,2]
[389156304,1759593039935,-500.0,0.00019178,2]
[389156305,1759593039945,-500.0,0.00019178,2]
[389156306,1759593039955,-500.0,0.00019178,2]
[389156307,1759593039965,-520.0,0.00019178,3]
[389156308,1759593039976,-500.0,0.00019178,2]
[389156309,1759593039987,-500.0,0.00019178,2]
[389156310,1759593039998,-500.0,0.00019178,2]
[389156311,1759593040009,-500.0,0.00019178,2]
[389156312,1759593040019,-500.0,0.00019178,2]
[389156313,1759593040028,-500.0,0.00019178,2]
[389156314,1759593040039,-500.0,0.00019178,2]
[389156315,1759593040054,-500.0,0.00019178,2]
[389156316,1759593040064,-500.0,0.00019178,2]
[389156317,1759593040074,-749.21,0.00019178,2]
[389156318,1759593040085,-553.43,0.00019178,2]
[389156319,1759593040096,-500.0,0.00019178,2]
[389156320,1759593040107,-500.0,0.00019178,2]
[389156321,1759593040117,-500.0,0.00019178,2]
[389156322,1759593040133,-500.0,0.00019178,2]
[389156323,1759593040143,-500.0,0.00019178,2]
[389156324,1759593040154,-500.0,0.00019178,2]
[389156325,1759593040164,-500.0,0.00019178,2]
[389156326,1759593040175,-333.6448354,0.00019178,2]
[389156327,1759593040185,-500.0,0.00019178,2]
[389156328,1759593040195,-500.0,0.00019178,2]
[389156329,1759593040205,-470.08892628,0.00019178,2]
[389156330,1759593040215,-500.0,0.00019178,2]
[389156331,1759593040225,-500.0,0.00019178,2]
[389156332,1759593040236,-500.0,0.00019178,2]
[389156333,1759593040247,-500.0,0.00019178,2]
[389156334,1759593040258,-500.0,0.00019178,2]
[389156335,1759593040268,-500.0,0.00019178,2]
[389156336,1759593040279,-500.0,0.00019178,2]
[389156337,1759593040291,-500.0,0.00019178,2]
[389156338,1759593040301,-500.0,0.00019178,2]
[389156339,1759593040313,-500.0,0.00019178,2]
[389156340,1759593040323,-500.0,0.00019178,2]
[389156341,1759593040334,-500.0,0.00019178,2]
[389156342,1759593040344,-500.0,0.00019178,2]
[389156344,1759593040355,-500.0,0.00019178,2]
[389156345,1759593040365,-500.0,0.00019178,2]
[389156346,1759593040376,-500.0,0.00019178,2]
[389156347,1759593040387,-500.0,0.00019178,2]
[389156348,1759593040400,-500.0,0.00019178,2]
[389156350,1759593040410,-500.0,0.00019178,2]
[389156351,1759593040421,-500.0,0.00019178,2]
[389156352,1759593040432,-500.0,0.00019178,2]
[389156353,1759593040443,-592.33,0.00019178,2]
[389156354,1759593040453,-612.18,0.00019178,2]
[389156355,1759593040463,-500.0,0.00019178,2]
[389156356,1759593040472,-500.0,0.00019178,2]
[389156357,1759593040482,-500.0,0.00019178,2]
[389156358,1759593040492,-500.0,0.00019178,2]
[389156359,1759593040502,-500.0,0.00019178,2]
[389156360,1759593040512,-597.37,0.00019178,2]
[389156361,1759593040522,-500.0,0.00019178,2]
[389156362,1759593040532,-500.0,0.00019178,2]
[389156363,1759593040542,-500.0,0.00019178,2]
[389156364,1759593040552,-500.0,0.00019178,2]
[389156365,1759593040564,-500.0,0.00019178,2]
[389156366,1759593040574,-500.0,0.00019178,2]
[389156367,1759593040584,-500.0,0.00019178,2]
[389156368,1759593040594,-1880.73,0.00019178,2]
[389156369,1759593040606,-561.95,0.00019178,2]
[389156370,1759593040616,-500.0,0.00019178,2]
[389156371,1759593040627,-500.0,0.00019178,2]
[389156372,1759593040638,-1220.52,0.00019178,2]
[389156373,1759593040648,-500.0,0.00019178,2]
[389156374,1759593040657,-500.0,0.00019178,2]
[389156375,1759593040667,-946.68,0.00019178,2]
[389156376,1759593040677,-500.0,0.00019178,2]
[389156377,1759593040687,-500.0,0.00019178,2]
[389156378,1759593040697,-500.0,0.00019178,2]
[389156379,1759593040707,-500.0,0.00019178,2]
[389156380,1759593040930,-883.67,0.00019178,2]
[389156381,1759593040941,-500.0,0.00019178,2]
[389156382,1759593040950,-500.0,0.00019178,2]
[389156383,1759593040960,-500.0,0.00019178,2]
[389156384,1759593040970,-500.0,0.00019178,2]
[389156385,1759593040980,-500.0,0.00019178,2]
[389156386,1759593040990,-500.0,0.00019178,2]
[389156387,1759593041000,-500.0,0.00019178,2]
[389156388,1759593041010,-695.58,0.00019178,2]
[389156389,1759593041021,-500.0,0.00019178,2]
[389156390,1759593041030,-500.0,0.00019178,2]
[389156391,1759593041040,-500.0,0.00019178,2]
[389156392,1759593041051,-500.0,0.00019178,2]
[389156393,1759593041061,-500.0,0.00019178,2]
[389156394,1759593041070,-500.0,0.00019178,2]
[389156395,1759593041080,-500.0,0.00019178,2]
[389156396,1759593041090,-325.85202466,0.00019178,2]
[389156398,1759593041100,-500.0,0.00019178,2]
[389156400,1759593041110,-500.0,0.00019178,2]
[389156402,1759593041119,-500.0,0.00019178,2]
[389156404,1759593041130,-500.0,0.00019178,2]
[389156406,1759593041140,-811.13,0.00019178,2]
[389156408,1759593041149,-1711.96,0.00019178,2]
[389156410,1759593041159,-704.65,0.00019178,2]
[389156411,1759593041168,-462.43779933,0.00019178,2]
[389156412,1759593041177,-500.0,0.00019178,2]
[389156413,1759593041187,-767.26,0.00019178,2]
[389156414,1759593041196,-500.0,0.00019178,2]
[389156415,1759593041206,-500.0,0.00019178,2]
[389156416,1759593041216,-500.0,0.00019178,2]
[389156417,1759593041227,-500.0,0.00019178,2]
[389156418,1759593041237,-500.0,0.00019178,2]
[389156419,1759593041247,-500.0,0.00019178,2]
[389156420,1759593041256,-924.94,0.00019178,2]
[389156421,1759593041265,-500.0,0.00019178,2]
[389156422,1759593041275,-500.0,0.00019178,2]
[389156423,1759593041285,-443.76001596,0.00019178,2]
[389156424,1759593041294,-500.0,0.00019178,2]
[389156425,1759593041304,-500.0,0.00019178,2]
[389156426,1759593041314,-500.0,0.00019178,2]
[389156427,1759593041324,-500.0,0.00019178,2]
[389156428,1759593041334,-500.0,0.00019178,2]
[389156429,1759593041343,-500.0,0.00019178,2]
[389156430,1759593041353,-500.0,0.00019178,2]
[389156431,1759593041363,-500.0,0.00019178,2]
[389156432,1759593041372,-500.0,0.00019178,2]
[389156433,1759593041382,-500.0,0.00019178,2]
[389156434,1759593041398,-823.2,0.00019178,2]
[389156435,1759593041408,-500.0,0.00019178,2]
[389156436,1759593041418,-500.0,0.00019178,2]
[389156437,1759593041427,-985.96,0.00019178,2]
[389156438,1759593041438,-500.0,0.00019178,2]
[389156439,1759593041448,-627.27,0.00019178,2]
[389156440,1759593041457,-551.2175941,0.00019178,2]
[389156441,1759593041467,-500.0,0.00019178,2]
[389156442,1759593041476,-500.0,0.00019178,2]
[389156443,1759593041486,-500.0,0.00019178,2]
[389156444,1759593041495,-500.0,0.00019178,2]
[389156445,1759593041504,-532.82,0.00019178,2]
[389156446,1759593041514,-500.0,0.00019178,2]
[389156447,1759593041523,-1949.45,0.00019178,2]
[389156448,1759593041533,-500.0,0.00019178,2]
[389156449,1759593041542,-3303.91,0.00019178,2]
[389156450,1759593041552,-500.0,0.00019178,2]
[389156451,1759593041562,-500.0,0.00019178,2]
[389156452,1759593041572,-500.0,0.00019178,2]
[389156453,1759593041581,-500.0,0.00019178,2]
[389156454,1759593041590,-500.0,0.00019178,2]
[389156455,1759593041600,-566.96,0.00019178,2]
[389156456,1759593041609,-500.0,0.00019178,2]
[389156457,1759593041618,-500.0,0.00019178,2]
[389156458,1759593041629,-500.0,0.00019178,2]
[389156459,1759593041638,-500.0,0.00019178,2]
[389156460,1759593041647,-500.0,0.00019178,2]
[389156461,1759593041657,-500.0,0.00019178,2]
[389156462,1759593041666,-500.0,0.00019178,2]
[389156463,1759593041675,-500.0,0.00019178,2]
[389156464,1759593041684,-1119.98,0.00019178,2]
[389156465,1759593041693,-500.0,0.00019178,2]
[389156466,1759593041702,-500.0,0.00019178,2]
[389156467,1759593041712,-500.0,0.00019178,2]
[389156468,1759593041721,-500.0,0.00019178,2]
[389156469,1759593041730,-500.0,0.00019178,2]
[389156470,1759593041739,-500.0,0.00019178,2]
[389156471,1759593041749,-500.0,0.00019178,2]
[389156472,1759593041759,-500.0,0.00019178,2]
[389156473,1759593041769,-500.0,0.00019178,2]
[389156474,1759593041779,-500.0,0.00019178,2]
[389156475,1759593041788,-500.0,0.00019178,2]
[389156476,1759593041797,-500.0,0.00019178,2]
[389156477,1759593041806,-545.28,0.00019178,2]
[389156478,1759593041816,-1261.68,0.00019178,2]
[389156479,1759593041825,-500.0,0.00019178,2]
[389156480,1759593041834,-500.0,0.00019178,2]
[389156481,1759593041844,-500.0,0.00019178,2]
[389156482,1759593041853,-3676.63,0.00019178,2]
[389156483,1759593041862,-637.38,0.00019178,2]
[389156484,1759593041871,-500.0,0.00019178,2]
[389156485,1759593041881,-568.41,0.00019178,2]
[389156486,1759593041890,-500.0,0.00019178,2]
[389156487,1759593041899,-500.0,0.00019178,2]
[389156488,1759593041908,-500.0,0.00019178,2]
[389156489,1759593041917,-500.0,0.00019178,2]
[389156490,1759593041926,-500.0,0.00019178,2]
[389156491,1759593041935,-500.0,0.00019178,2]
[389156492,1759593041945,-500.0,0.00019178,2]
[389156493,1759593041954,-548.38,0.00019178,2]
[389156494,1759593041963,-362.32166968,0.00019178,2]
[389156495,1759593041972,-3208.65,0.00019178,2]
[389156496,1759593041982,-467.88326351,0.00019178,2]
[389156497,1759593041992,-500.0,0.00019178,2]
[389156498,1759593042001,-685.52,0.00019178,2]
[389156499,1759593042011,-500.0,0.00019178,2]
[389156500,1759593042021,-500.0,0.00019178,2]
[389156501,1759593042030,-1279.41,0.00019178,2]
[389156502,1759593042040,-467.31736296,0.00019178,2]
[389156503,1759593042049,-500.0,0.00019178,2]
[389156504,1759593042058,-643.26,0.00019178,2]
[389156505,1759593042068,-500.0,0.00019178,2]
[389156506,1759593042077,-500.0,0.00019178,2]
[389156507,1759593042086,-500.0,0.00019178,2]
[389156508,1759593042095,-500.0,0.00019178,2]
[389156509,1759593042104,-500.0,0.00019178,2]
[389156510,1759593042115,-500.0,0.00019178,2]
[389156511,1759593042125,-5094.83,0.00019178,2]
[389156512,1759593042135,-500.0,0.00019178,2]
[389156513,1759593042144,-1655.05,0.00019178,2]
[389156514,1759593042154,-1432.98,0.00019178,2]
[389156515,1759593042163,-500.0,0.00019178,2]
[389156516,1759593042172,-967.26,0.00019178,2]
[389156517,1759593042182,-500.0,0.00019178,2]
[389156518,1759593042191,-500.0,0.00019178,2]
[389156519,1759593042201,-500.0,0.00019178,2]
[389156520,1759593042211,-500.0,0.00019178,2]
[389156521,1759593042220,-4031.17,0.00019178,2]
[389156522,1759593042229,-442.67511379,0.00019178,2]
[389156523,1759593042239,-4495.31,0.00019178,2]
[389156524,1759593042248,-5060.59,0.00019178,2]
[389156525,1759593042257,-500.0,0.00019178,2]
[389156526,1759593042267,-500.0,0.00019178,2]
[389156527,1759593042276,-4043.69,0.00019178,2]
[389156528,1759593042285,-500.0,0.00019178,2]
[389156529,1759593042294,-500.0,0.00019178,2]
[389156530,1759593042303,-500.0,0.00019178,2]
[389156531,1759593042313,-500.0,0.00019178,2]
[389156532,1759593042322,-500.0,0.00019178,2]
[389156533,1759593042332,-1469.96,0.00019178,2]
[389156534,1759593042342,-500.0,0.00019178,2]
[389156535,1759593042351,-632.58,0.00019178,2]
[389156536,1759593042360,-500.0,0.00019178,2]
[389156537,1759593042369,-500.0,0.00019178,2]
[389156538,1759593042379,-1264.74,0.00019178,2]
[389156539,1759593042392,-500.0,0.00019178,2]
[389156540,1759593042402,-500.0,0.00019178,2]
[389156541,1759593042412,-500.0,0.00019178,2]
[389156542,1759593042422,-834.51,0.00019178,2]
[389156543,1759593042431,-1639.5,0.00019178,2]
[389156544,1759593042440,-500.0,0.00019178,2]
[389156545,1759593042450,-509.86,0.00019178,2]
[389156546,1759593042460,-500.0,0.00019178,2]
[389156547,1759593042469,-500.0,0.00019178,2]
[389156548,1759593042479,-500.0,0.00019178,2]
[389156549,1759593042490,-573.11,0.00019178,2]
[389156550,1759593042500,-500.0,0.00019178,2]
[389156551,1759593042509,-500.0,0.00019178,2]
[389156552,1759593042520,-4288.81,0.00019178,2]
[389156553,1759593042529,-500.0,0.00019178,2]
[389156554,1759593042540,-2260.03,0.00019178,2]
[389156555,1759593042550,-500.0,0.00019178,2]
[389156556,1759593042559,-614.86,0.00019178,2]
[389156557,1759593042568,-572.78,0.00019178,2]
[389156558,1759593042578,-982.23,0.00019178,2]
[389156559,1759593042587,-500.0,0.00019178,2]
[389156560,1759593042596,-861.39,0.00019178,2]
[389156561,1759593042605,-500.0,0.00019178,2]
[389156562,1759593042614,-711.3,0.00019178,2]
[389156563,1759593042624,-1169.22,0.00019178,2]
[389156564,1759593042633,-745.87,0.00019178,2]
[389156565,1759593042643,-500.0,0.00019178,2]
[389156566,1759593042652,-769.58,0.00019178,2]
[389156567,1759593042663,-500.0,0.00019178,2]
[389156568,1759593042673,-500.0,0.00019178,2]
[389156569,1759593042683,-1039.1,0.00019178,2]
[389156570,1759593042695,-500.0,0.00019178,2]
[389156571,1759593042707,-586.44,0.00019178,2]
[389156572,1759593042718,-5376.96,0.00019178,2]
[389156573,1759593042729,-500.0,0.00019178,2]
[389156574,1759593042738,-500.0,0.00019178,2]
[389156575,1759593042748,-2325.11,0.00019178,2]
[389156576,1759593042757,-500.0,0.00019178,2]
[389156577,1759593042766,-500.0,0.00019178,2]
[389156578,1759593042776,-1184.17,0.00019178,2]
[389156579,1759593042785,-500.0,0.00019178,2]
[389156580,1759593042794,-500.0,0.00019178,2]
[389156581,1759593042806,-500.0,0.00019178,2]
[389156582,1759593042816,-2810.27,0.00019178,2]
[389156583,1759593042826,-500.0,0.00019178,2]
[389156584,1759593042835,-621.50103138,0.00019178,2]
[389156585,1759593042845,-500.0,0.00019178,2]
[389156586,1759593042854,-507.40357399,0.00019178,2]
[389156587,1759593042864,-500.0,0.00019178,2]
[389156588,1759593042873,-500.0,0.00019178,2]
[389156589,1759593042883,-570.71,0.00019178,2]
[389156590,1759593042892,-628.79,0.00019178,2]
[389156591,1759593042901,-761.94,0.00019178,2]
[389156592,1759593042911,-764.12,0.00019178,2]
[389156593,1759593042921,-500.0,0.00019178,2]
[389156594,1759593042930,-1631.41,0.00019178,2]
[389156595,1759593042940,-500.0,0.00019178,2]
[389156596,1759593042951,-500.0,0.00019178,2]
[389156597,1759593042960,-500.0,0.00019178,2]
[389156598,1759593042970,-1495.3,0.00019178,2]
[389156599,1759593042979,-2092.97,0.00019178,2]
[389156600,1759593042990,-1174.21,0.00019178,2]
[389156601,1759593043001,-500.0,0.00019178,2]
[389156602,1759593043011,-663.28,0.00019178,2]
[389156603,1759593043021,-1969.15,0.00019178,2]
[389156604,1759593043031,-500.0,0.00019178,2]
[389156605,1759593043041,-1062.03,0.00019178,2]
[389156606,1759593043051,-680.83,0.00019178,2]
[389156607,1759593043062,-596.45,0.00019178,2]
[389156608,1759593043071,-2706.53,0.00019178,2]
[389156609,1759593043083,-5236.69,0.00019178,2]
[389156610,1759593043094,-500.0,0.00019178,2]
[389156611,1759593043103,-482.49186294,0.00019178,2]
[389156612,1759593043113,-500.0,0.00019178,2]
[389156613,1759593043124,-500.0,0.00019178,2]
[389156614,1759593043134,-722.39,0.00019178,2]
[389156615,1759593043143,-676.08,0.00019178,2]
[389156616,1759593043153,-500.0,0.00019178,2]
[389156617,1759593043162,-622.6,0.00019178,2]
[389156618,1759593043172,-500.0,0.00019178,2]
[389156619,1759593043182,-770.23,0.00019178,2]
[389156620,1759593043191,-1625.7,0.00019178,2]
[389156621,1759593043201,-596.04,0.00019178,2]
[389156622,1759593043211,-500.0,0.00019178,2]
[389156623,1759593043221,-5806.93,0.00019178,2]
[389156624,1759593043232,-1512.93,0.00019178,2]
[389156625,1759593043242,-500.0,0.00019178,2]
[389156626,1759593043251,-500.0,0.00019178,2]
[389156627,1759593043261,-500.0,0.00019178,2]
[389156633,1759593043312,-500.0,0.00019178,2]
[389156635,1759593043321,-500.0,0.00019178,2]
[389156637,1759593043330,-500.0,0.00019178,2]
[389156639,1759593043340,-500.0,0.00019178,2]
[389156641,1759593043350,-500.0,0.00019178,2]
[389156643,1759593043359,-500.0,0.00019178,2]
[389156645,1759593043369,-329.3952109,0.00019178,2]
[389156647,1759593043379,-667.12,0.00019178,2]
[389156649,1759593043390,-500.0,0.00019178,2]